[Event "Late-Titled-Tuesday-Blitz-January-16-2024"]
[Site "Chess.com"]
[Date "2024.01.16"]
[Round "7"]
[White "Kostukov_Alex"]
[Black "ATM622"]
[Result "0-1"]
[WhiteElo "2313"]
[BlackElo "2484"]
[TimeControl "180+1"]
[EndTime "15:16:24 PST"]
[Termination "ATM622 won on time"]

1. g3 {[%clk 0:03:00.9]} 1... c6 {[%clk 0:02:57.7]} 2. Bg2 {[%clk 0:03:01.2]}
2... g6 {[%clk 0:02:57.7]} 3. c4 {[%clk 0:02:58.9]} 3... d5 {[%clk 0:02:56.9]}
4. Nf3 {[%clk 0:02:58.9]} 4... Bg7 {[%clk 0:02:56.5]} 5. O-O {[%clk 0:02:59.2]}
5... Nf6 {[%clk 0:02:56.8]} 6. cxd5 {[%clk 0:02:57.5]} 6... cxd5 {[%clk
0:02:56.8]} 7. d4 {[%clk 0:02:58.4]} 7... O-O {[%clk 0:02:56.9]} 8. Nc3 {[%clk
0:02:58.4]} 8... Nc6 {[%clk 0:02:57.2]} 9. Bf4 {[%clk 0:02:57.6]} 9... Bf5
{[%clk 0:02:56.5]} 10. Ne5 {[%clk 0:02:57.3]} 10... Rc8 {[%clk 0:02:54.7]} 11.
Nxc6 {[%clk 0:02:55.1]} 11... bxc6 {[%clk 0:02:48.7]} 12. Rc1 {[%clk 0:02:53.3]}
12... Nh5 {[%clk 0:02:30.2]} 13. Bg5 {[%clk 0:02:18.4]} 13... h6 {[%clk
0:02:13.8]} 14. Be3 {[%clk 0:02:13.1]} 14... Nf6 {[%clk 0:02:12.7]} 15. Na4
{[%clk 0:02:09.7]} 15... Ng4 {[%clk 0:02:10.3]} 16. Nc5 {[%clk 0:01:42.6]} 16...
Nxe3 {[%clk 0:01:57.9]} 17. fxe3 {[%clk 0:01:43.5]} 17... e5 {[%clk 0:01:49.4]}
18. Qa4 {[%clk 0:01:29.6]} 18... Qg5 {[%clk 0:01:41.3]} 19. Rc3 {[%clk
0:01:19.1]} 19... exd4 {[%clk 0:01:39.5]} 20. exd4 {[%clk 0:01:20]} 20... Qd2
{[%clk 0:01:36.8]} 21. e3 {[%clk 0:00:53.8]} 21... Rfe8 {[%clk 0:01:31.1]} 22.
Qa3 {[%clk 0:00:13.9]} 22... Rxe3 {[%clk 0:01:21.9]} 23. Rxe3 {[%clk 0:00:09.8]}
23... Bxd4 {[%clk 0:01:22]} 24. Kh1 {[%clk 0:00:09.6]} 24... Qxe3 {[%clk
0:01:17]} 25. Nb3 {[%clk 0:00:08.2]} 25... Bb6 {[%clk 0:01:09.2]} 26. Qa6 {[%clk
0:00:08.4]} 26... Rf8 {[%clk 0:01:07.4]} 27. Qb7 {[%clk 0:00:08.9]} 27... Be4
{[%clk 0:01:07.1]} 28. Qe7 {[%clk 0:00:05.7]} 28... Bxg2+ {[%clk 0:01:07]} 29.
Kxg2 {[%clk 0:00:06.6]} 29... Qxe7 {[%clk 0:01:06.9]} 0-1

[Event "Late-Titled-Tuesday-Blitz-January-16-2024"]
[Site "Chess.com"]
[Date "2024.01.16"]
[Round "7"]
[White "LikeWater"]
[Black "AmanteDeMoi"]
[Result "1-0"]
[WhiteElo "2798"]
[BlackElo "2584"]
[TimeControl "180+1"]
[EndTime "15:16:26 PST"]
[Termination "LikeWater won on time"]

1. e4 {[%clk 0:03:00.9]} 1... g6 {[%clk 0:02:59.2]} 2. d4 {[%clk 0:02:59.5]}
2... Bg7 {[%clk 0:02:59.1]} 3. Nc3 {[%clk 0:02:59.8]} 3... c6 {[%clk 0:02:58.9]}
4. Nf3 {[%clk 0:02:58.6]} 4... d5 {[%clk 0:02:58.7]} 5. h3 {[%clk 0:02:58.7]}
5... dxe4 {[%clk 0:02:58.3]} 6. Nxe4 {[%clk 0:02:59.6]} 6... Nd7 {[%clk
0:02:58.5]} 7. Bd3 {[%clk 0:02:59]} 7... Ngf6 {[%clk 0:02:58.5]} 8. Ng3 {[%clk
0:02:59.3]} 8... O-O {[%clk 0:02:53.6]} 9. O-O {[%clk 0:02:59.6]} 9... c5 {[%clk
0:02:51.8]} 10. Re1 {[%clk 0:02:50]} 10... cxd4 {[%clk 0:02:49.8]} 11. Nxd4
{[%clk 0:02:50.9]} 11... Nc5 {[%clk 0:02:42.7]} 12. Bf1 {[%clk 0:02:50.9]} 12...
e5 {[%clk 0:02:17.8]} 13. Nb3 {[%clk 0:02:26.3]} 13... Qxd1 {[%clk 0:01:58.3]}
14. Rxd1 {[%clk 0:02:27.2]} 14... Nxb3 {[%clk 0:01:51.1]} 15. axb3 {[%clk
0:02:28.1]} 15... Be6 {[%clk 0:01:43.2]} 16. Be3 {[%clk 0:02:24]} 16... a6
{[%clk 0:01:32.8]} 17. Ra5 {[%clk 0:02:18.9]} 17... Rfc8 {[%clk 0:01:26.9]} 18.
c4 {[%clk 0:02:09.1]} 18... Rd8 {[%clk 0:00:51.2]} 19. Rxd8+ {[%clk 0:02:00.5]}
19... Rxd8 {[%clk 0:00:50.7]} 20. Rxe5 {[%clk 0:02:01.4]} 20... Ng4 {[%clk
0:00:49.5]} 21. Rxe6 {[%clk 0:02:01.3]} 21... fxe6 {[%clk 0:00:40.3]} 22. hxg4
{[%clk 0:02:01.5]} 22... Rd1 {[%clk 0:00:29.7]} 23. c5 {[%clk 0:01:47.6]} 23...
Bxb2 {[%clk 0:00:26.2]} 24. f3 {[%clk 0:01:39.1]} 24... Be5 {[%clk 0:00:14.4]}
25. Ne4 {[%clk 0:01:33.7]} 25... Rb1 {[%clk 0:00:14]} 26. Nd2 {[%clk 0:01:33.2]}
26... Rb2 {[%clk 0:00:06]} 27. Bc4 {[%clk 0:01:32.5]} 27... Bc3 {[%clk
0:00:04.6]} 28. Ne4 {[%clk 0:01:31.3]} 28... Rb1+ {[%clk 0:00:02.8]} 29. Kf2
{[%clk 0:01:29.9]} 29... Be1+ {[%clk 0:00:02.6]} 30. Ke2 {[%clk 0:01:30.1]}
30... Kg7 {[%clk 0:00:02.3]} 31. Nd6 {[%clk 0:01:27.9]} 31... Bb4 {[%clk
0:00:02.2]} 32. Nxb7 {[%clk 0:01:27.5]} 32... Rb2+ {[%clk 0:00:02.5]} 33. Kd3
{[%clk 0:01:27.2]} 33... Rxg2 {[%clk 0:00:02.3]} 34. c6 {[%clk 0:01:27.3]} 1-0

[Event "Late-Titled-Tuesday-Blitz-January-16-2024"]
[Site "Chess.com"]
[Date "2024.01.16"]
[Round "7"]
[White "ahmedkandiliii"]
[Black "pr1105"]
[Result "0-1"]
[WhiteElo "2403"]
[BlackElo "2282"]
[TimeControl "180+1"]
[EndTime "15:16:31 PST"]
[Termination "pr1105 won by checkmate"]

1. e4 {[%clk 0:03:00.9]} 1... e5 {[%clk 0:03:00.2]} 2. Nf3 {[%clk 0:03:01.3]}
2... Nc6 {[%clk 0:03:00.6]} 3. Bb5 {[%clk 0:03:01.6]} 3... Nf6 {[%clk
0:03:00.7]} 4. Nc3 {[%clk 0:03:00.3]} 4... Bb4 {[%clk 0:02:59.4]} 5. O-O {[%clk
0:02:58.6]} 5... O-O {[%clk 0:02:59.2]} 6. d3 {[%clk 0:02:57.8]} 6... d6 {[%clk
0:02:58.9]} 7. Ne2 {[%clk 0:02:56.8]} 7... Ne7 {[%clk 0:02:58.8]} 8. Bg5 {[%clk
0:02:50.2]} 8... Ng6 {[%clk 0:02:54.2]} 9. Ng3 {[%clk 0:02:49.2]} 9... h6 {[%clk
0:02:52.5]} 10. Bd2 {[%clk 0:02:46]} 10... Bc5 {[%clk 0:02:45.2]} 11. h3 {[%clk
0:02:42.7]} 11... c6 {[%clk 0:02:42.5]} 12. Bc4 {[%clk 0:02:40.2]} 12... d5
{[%clk 0:02:19.7]} 13. Bb3 {[%clk 0:02:38]} 13... Bb6 {[%clk 0:02:08.7]} 14.
exd5 {[%clk 0:02:32.9]} 14... cxd5 {[%clk 0:02:08.3]} 15. Re1 {[%clk 0:02:30.3]}
15... Re8 {[%clk 0:02:08]} 16. Bc3 {[%clk 0:02:24.6]} 16... Qd6 {[%clk
0:02:07.6]} 17. Qe2 {[%clk 0:02:15.6]} 17... e4 {[%clk 0:01:56.4]} 18. dxe4
{[%clk 0:02:09.9]} 18... Qxg3 {[%clk 0:01:56.3]} 19. Bxf6 {[%clk 0:02:03.6]}
19... Nf4 {[%clk 0:01:15.1]} 20. Qf1 {[%clk 0:01:48.7]} 20... Nxh3+ {[%clk
0:01:12.7]} 21. Kh1 {[%clk 0:01:46.8]} 21... Nxf2+ {[%clk 0:01:12.7]} 22. Kg1
{[%clk 0:01:46.8]} 22... Ng4+ {[%clk 0:00:47]} 23. Kh1 {[%clk 0:01:32.5]} 23...
Nxf6 {[%clk 0:00:25.5]} 24. exd5 {[%clk 0:01:26.7]} 24... Bg4 {[%clk 0:00:25.1]}
25. Rxe8+ {[%clk 0:01:20.8]} 25... Rxe8 {[%clk 0:00:26]} 26. Rd1 {[%clk
0:01:15.8]} 26... Bxf3 {[%clk 0:00:23.7]} 27. Qxf3 {[%clk 0:01:12.7]} 27... Re1+
{[%clk 0:00:16.1]} 28. Rxe1 {[%clk 0:01:12.5]} 28... Qxe1+ {[%clk 0:00:17]} 29.
Kh2 {[%clk 0:01:12.1]} 29... Qg1+ {[%clk 0:00:15.7]} 30. Kh3 {[%clk 0:01:12]}
30... Qh1+ {[%clk 0:00:16]} 31. Kg3 {[%clk 0:01:12]} 31... Qe1+ {[%clk
0:00:14.4]} 32. Kh3 {[%clk 0:01:08.1]} 32... Bf2 {[%clk 0:00:11.2]} 33. d6
{[%clk 0:01:04.9]} 33... Qh1# {[%clk 0:00:11]} 0-1

[Event "Late-Titled-Tuesday-Blitz-January-16-2024"]
[Site "Chess.com"]
[Date "2024.01.16"]
[Round "7"]
[White "aceontheturn"]
[Black "Petukhov_Dmitry"]
[Result "1-0"]
[WhiteElo "2759"]
[BlackElo "2549"]
[TimeControl "180+1"]
[EndTime "15:16:32 PST"]
[Termination "aceontheturn won by resignation"]

1. e4 {[%clk 0:02:53.1]} 1... c5 {[%clk 0:02:56]} 2. Nc3 {[%clk 0:02:53.6]} 2...
d6 {[%clk 0:02:56.1]} 3. f4 {[%clk 0:02:52.4]} 3... Nc6 {[%clk 0:02:55.9]} 4.
Bb5 {[%clk 0:02:53.1]} 4... Bd7 {[%clk 0:02:55.8]} 5. Nf3 {[%clk 0:02:53.3]}
5... a6 {[%clk 0:02:51.7]} 6. Bxc6 {[%clk 0:02:50.1]} 6... Bxc6 {[%clk
0:02:52.6]} 7. d3 {[%clk 0:02:50.8]} 7... e6 {[%clk 0:02:49.7]} 8. O-O {[%clk
0:02:48]} 8... d5 {[%clk 0:02:49.8]} 9. Ne5 {[%clk 0:02:36.4]} 9... d4 {[%clk
0:02:42.1]} 10. Nxc6 {[%clk 0:02:36]} 10... bxc6 {[%clk 0:02:43]} 11. Na4 {[%clk
0:02:36.1]} 11... Nf6 {[%clk 0:02:24.5]} 12. b3 {[%clk 0:02:35.5]} 12... Nd7
{[%clk 0:02:24.6]} 13. Ba3 {[%clk 0:02:34.4]} 13... Be7 {[%clk 0:02:24.4]} 14.
Qh5 {[%clk 0:02:30.1]} 14... O-O {[%clk 0:02:17]} 15. Rf3 {[%clk 0:02:28]} 15...
g6 {[%clk 0:02:15.7]} 16. Qh6 {[%clk 0:02:25.4]} 16... f6 {[%clk 0:01:55]} 17.
f5 {[%clk 0:02:16.6]} 17... Ne5 {[%clk 0:01:44.3]} 18. Rh3 {[%clk 0:02:04]}
18... Rf7 {[%clk 0:01:37.6]} 19. fxe6 {[%clk 0:01:48]} 19... Rg7 {[%clk
0:01:36.7]} 20. Bxc5 {[%clk 0:01:48.3]} 20... g5 {[%clk 0:01:18.4]} 21. Rf1
{[%clk 0:01:42.4]} 21... Ng6 {[%clk 0:01:01.7]} 22. Rhf3 {[%clk 0:01:35]} 22...
Ne5 {[%clk 0:00:51.2]} 23. Rxf6 {[%clk 0:01:21]} 23... Ng4 {[%clk 0:00:47.7]}
24. Qxg7+ {[%clk 0:01:17.6]} 24... Kxg7 {[%clk 0:00:47.5]} 25. Rf7+ {[%clk
0:01:18.5]} 25... Kg6 {[%clk 0:00:37.1]} 26. Rxe7 {[%clk 0:01:19.4]} 26... Qb8
{[%clk 0:00:31.7]} 27. g3 {[%clk 0:01:14.9]} 27... Qe5 {[%clk 0:00:27.4]} 28.
Rf5 {[%clk 0:01:12.2]} 28... Qb8 {[%clk 0:00:22.9]} 29. Bxd4 {[%clk 0:01:08.6]}
29... Qd8 {[%clk 0:00:17.9]} 30. Rg7+ {[%clk 0:00:59]} 30... Kh6 {[%clk
0:00:18.1]} 31. Rd7 {[%clk 0:00:59.9]} 31... Qa5 {[%clk 0:00:17]} 32. Rxa5
{[%clk 0:00:56.2]} 1-0

[Event "Late-Titled-Tuesday-Blitz-January-16-2024"]
[Site "Chess.com"]
[Date "2024.01.16"]
[Round "7"]
[White "nfds"]
[Black "ToddBryant"]
[Result "1-0"]
[WhiteElo "2485"]
[BlackElo "2303"]
[TimeControl "180+1"]
[EndTime "15:16:34 PST"]
[Termination "nfds won on time"]

1. Nf3 {[%clk 0:03:00.9]} 1... Nf6 {[%clk 0:02:57.2]} 2. b3 {[%clk 0:02:56.6]}
2... g6 {[%clk 0:02:57.1]} 3. Bb2 {[%clk 0:02:56.5]} 3... Bg7 {[%clk 0:02:57.7]}
4. e3 {[%clk 0:02:55.4]} 4... O-O {[%clk 0:02:57.5]} 5. Be2 {[%clk 0:02:55.2]}
5... d6 {[%clk 0:02:58.2]} 6. d4 {[%clk 0:02:53.6]} 6... b6 {[%clk 0:02:55.6]}
7. O-O {[%clk 0:02:52.4]} 7... Bb7 {[%clk 0:02:56.2]} 8. a4 {[%clk 0:02:51.6]}
8... a5 {[%clk 0:02:55.2]} 9. Nbd2 {[%clk 0:02:50.1]} 9... Nbd7 {[%clk
0:02:55.6]} 10. Nc4 {[%clk 0:02:41.5]} 10... Re8 {[%clk 0:02:53.1]} 11. Re1
{[%clk 0:02:38.5]} 11... Ne4 {[%clk 0:02:50.6]} 12. Nfd2 {[%clk 0:02:31.9]}
12... Nxd2 {[%clk 0:02:41.6]} 13. Nxd2 {[%clk 0:02:22]} 13... e5 {[%clk
0:02:41.1]} 14. Bf3 {[%clk 0:02:19]} 14... Bxf3 {[%clk 0:02:24.5]} 15. Qxf3
{[%clk 0:02:06.8]} 15... exd4 {[%clk 0:02:00.1]} 16. Bxd4 {[%clk 0:02:03.9]}
16... Ne5 {[%clk 0:01:53.4]} 17. Bxe5 {[%clk 0:01:54.7]} 17... Bxe5 {[%clk
0:01:48]} 18. Rad1 {[%clk 0:01:54.5]} 18... Qf6 {[%clk 0:01:26.3]} 19. Qc6
{[%clk 0:01:48.1]} 19... Qe7 {[%clk 0:01:11.6]} 20. Nf3 {[%clk 0:01:44.2]} 20...
Bf6 {[%clk 0:01:06.3]} 21. Rd5 {[%clk 0:01:41.8]} 21... Rad8 {[%clk 0:00:59.5]}
22. Red1 {[%clk 0:01:39.7]} 22... Qd7 {[%clk 0:00:57.2]} 23. Qc4 {[%clk
0:01:33.5]} 23... Re7 {[%clk 0:00:47.6]} 24. h3 {[%clk 0:01:27]} 24... Rde8
{[%clk 0:00:45.9]} 25. Qa6 {[%clk 0:01:23.8]} 25... Re4 {[%clk 0:00:38.8]} 26.
Qb7 {[%clk 0:01:19.1]} 26... h5 {[%clk 0:00:31.2]} 27. Rxd6 {[%clk 0:01:08.4]}
27... Qe7 {[%clk 0:00:13.5]} 28. Rd7 {[%clk 0:01:01.9]} 28... Qb4 {[%clk
0:00:10.3]} 29. Qxc7 {[%clk 0:00:57.6]} 29... R4e6 {[%clk 0:00:02.5]} 30. Rxf7
{[%clk 0:00:56.5]} 30... Bh8 {[%clk 0:00:01.5]} 31. Rh7 {[%clk 0:00:56.1]} 1-0

[Event "Late-Titled-Tuesday-Blitz-January-16-2024"]
[Site "Chess.com"]
[Date "2024.01.16"]
[Round "7"]
[White "Smile2005"]
[Black "Mikhail_Golubev"]
[Result "1-0"]
[WhiteElo "2350"]
[BlackElo "2505"]
[TimeControl "180+1"]
[EndTime "15:16:39 PST"]
[Termination "Smile2005 won on time"]

1. e4 {[%clk 0:03:00.9]} 1... c5 {[%clk 0:02:59.4]} 2. Nf3 {[%clk 0:03:00.4]}
2... d6 {[%clk 0:02:59.6]} 3. Bb5+ {[%clk 0:02:59.9]} 3... Bd7 {[%clk
0:02:58.4]} 4. Bxd7+ {[%clk 0:02:59.4]} 4... Nxd7 {[%clk 0:02:59]} 5. O-O {[%clk
0:02:40]} 5... Ngf6 {[%clk 0:02:57.4]} 6. Qe2 {[%clk 0:02:39.9]} 6... e6 {[%clk
0:02:57.2]} 7. b3 {[%clk 0:02:37.8]} 7... g6 {[%clk 0:02:56.1]} 8. Bb2 {[%clk
0:02:32.4]} 8... Bg7 {[%clk 0:02:56.1]} 9. c4 {[%clk 0:02:31.3]} 9... O-O {[%clk
0:02:55.3]} 10. Rd1 {[%clk 0:02:25.6]} 10... e5 {[%clk 0:02:46.4]} 11. Nc3
{[%clk 0:02:24.9]} 11... Nh5 {[%clk 0:02:44.4]} 12. Nd5 {[%clk 0:02:22.9]} 12...
f5 {[%clk 0:02:43.1]} 13. d3 {[%clk 0:02:20.1]} 13... f4 {[%clk 0:02:28.4]} 14.
b4 {[%clk 0:02:13.6]} 14... b6 {[%clk 0:02:23.2]} 15. a4 {[%clk 0:02:12.1]}
15... Nhf6 {[%clk 0:02:21.1]} 16. a5 {[%clk 0:02:10.9]} 16... Nxd5 {[%clk
0:02:16.6]} 17. cxd5 {[%clk 0:02:10.9]} 17... cxb4 {[%clk 0:02:15.4]} 18. axb6
{[%clk 0:02:05.7]} 18... Qxb6 {[%clk 0:02:06.6]} 19. d4 {[%clk 0:02:05.5]} 19...
a5 {[%clk 0:02:06.6]} 20. dxe5 {[%clk 0:02:03.2]} 20... dxe5 {[%clk 0:01:55.8]}
21. Rdc1 {[%clk 0:01:57.4]} 21... Rfc8 {[%clk 0:01:44.1]} 22. Ng5 {[%clk
0:01:29.4]} 22... Bh6 {[%clk 0:01:32.4]} 23. Qg4 {[%clk 0:01:08.5]} 23... Rxc1+
{[%clk 0:01:15]} 24. Rxc1 {[%clk 0:01:07.4]} 24... Nf6 {[%clk 0:01:14.8]} 25.
Rc8+ {[%clk 0:01:02.9]} 25... Kg7 {[%clk 0:00:31.5]} 26. Bxe5 {[%clk 0:00:59.3]}
26... Rxc8 {[%clk 0:00:24.8]} 27. Qd7+ {[%clk 0:00:50.4]} 1-0

[Event "Late-Titled-Tuesday-Blitz-January-16-2024"]
[Site "Chess.com"]
[Date "2024.01.16"]
[Round "7"]
[White "Rgoltsman"]
[Black "sansanathalia"]
[Result "1-0"]
[WhiteElo "2229"]
[BlackElo "2364"]
[TimeControl "180+1"]
[EndTime "15:16:39 PST"]
[Termination "Rgoltsman won by checkmate"]

1. e4 {[%clk 0:03:00.9]} 1... c5 {[%clk 0:02:55.6]} 2. Nf3 {[%clk 0:02:59.9]}
2... Nf6 {[%clk 0:02:52.9]} 3. d4 {[%clk 0:03:00.8]} 3... Nxe4 {[%clk
0:02:52.1]} 4. Bd3 {[%clk 0:02:58.5]} 4... d5 {[%clk 0:02:50.8]} 5. O-O {[%clk
0:02:58.3]} 5... Nc6 {[%clk 0:02:38]} 6. Re1 {[%clk 0:02:55.5]} 6... cxd4 {[%clk
0:02:32.7]} 7. Bxe4 {[%clk 0:02:55.2]} 7... dxe4 {[%clk 0:02:32.2]} 8. Rxe4
{[%clk 0:02:56.1]} 8... Qd5 {[%clk 0:02:31.7]} 9. Nc3 {[%clk 0:02:48.3]} 9...
Qc5 {[%clk 0:02:08.3]} 10. Nxd4 {[%clk 0:02:47]} 10... g6 {[%clk 0:02:04.4]} 11.
Be3 {[%clk 0:02:32.5]} 11... Qa5 {[%clk 0:01:26.4]} 12. Nxc6 {[%clk 0:01:43.8]}
12... bxc6 {[%clk 0:01:24.5]} 13. Qd4 {[%clk 0:01:44.4]} 13... Rg8 {[%clk
0:01:17.8]} 14. Rd1 {[%clk 0:01:21.6]} 14... Bf5 {[%clk 0:01:00]} 15. Re5 {[%clk
0:01:05.7]} 15... Qc7 {[%clk 0:00:57.9]} 16. Qc5 {[%clk 0:00:29.3]} 16... e6
{[%clk 0:00:21.1]} 17. Nb5 {[%clk 0:00:21.7]} 17... Qb7 {[%clk 0:00:15.3]} 18.
Nd6+ {[%clk 0:00:20.7]} 18... Bxd6 {[%clk 0:00:15]} 19. Qxd6 {[%clk 0:00:21.6]}
19... Rc8 {[%clk 0:00:13.6]} 20. Bg5 {[%clk 0:00:21.4]} 20... Qb6 {[%clk
0:00:12.1]} 21. Qe7# {[%clk 0:00:19]} 1-0

[Event "Late-Titled-Tuesday-Blitz-January-16-2024"]
[Site "Chess.com"]
[Date "2024.01.16"]
[Round "7"]
[White "RianKapriaga"]
[Black "OYAcosta"]
[Result "0-1"]
[WhiteElo "2348"]
[BlackElo "2146"]
[TimeControl "180+1"]
[EndTime "15:16:46 PST"]
[Termination "OYAcosta won on time"]

1. d4 {[%clk 0:03:00.9]} 1... c6 {[%clk 0:03:00.9]} 2. e4 {[%clk 0:02:56.9]}
2... d5 {[%clk 0:03:01.8]} 3. exd5 {[%clk 0:02:55.9]} 3... cxd5 {[%clk
0:03:01.8]} 4. c4 {[%clk 0:02:55.7]} 4... Nf6 {[%clk 0:03:01.6]} 5. Nc3 {[%clk
0:02:53.8]} 5... Nc6 {[%clk 0:03:00.8]} 6. Bg5 {[%clk 0:02:44.9]} 6... e6 {[%clk
0:02:56.3]} 7. Nf3 {[%clk 0:02:42.6]} 7... Be7 {[%clk 0:02:55.7]} 8. c5 {[%clk
0:02:39.6]} 8... O-O {[%clk 0:02:51.2]} 9. Bb5 {[%clk 0:02:38.3]} 9... Ne4
{[%clk 0:02:44.4]} 10. Bf4 {[%clk 0:02:29.6]} 10... f5 {[%clk 0:02:43.2]} 11.
O-O {[%clk 0:02:28.2]} 11... Bd7 {[%clk 0:02:33.9]} 12. Bxc6 {[%clk 0:01:31.1]}
12... Bxc6 {[%clk 0:02:31.8]} 13. Qc2 {[%clk 0:01:23.3]} 13... Rc8 {[%clk
0:02:27.9]} 14. b4 {[%clk 0:01:20.3]} 14... Bf6 {[%clk 0:02:27.5]} 15. Be5
{[%clk 0:01:18.7]} 15... Be7 {[%clk 0:02:24.6]} 16. Nd2 {[%clk 0:01:06.3]} 16...
Be8 {[%clk 0:02:18.8]} 17. f3 {[%clk 0:00:51.5]} 17... Ng5 {[%clk 0:02:18.3]}
18. a4 {[%clk 0:00:41.7]} 18... Nf7 {[%clk 0:02:17.3]} 19. Bg3 {[%clk
0:00:21.1]} 19... g5 {[%clk 0:02:07.8]} 20. Rfe1 {[%clk 0:00:18.7]} 20... Bd7
{[%clk 0:02:00.7]} 21. Qd3 {[%clk 0:00:17.2]} 21... Bf6 {[%clk 0:01:56.2]} 22.
Nb3 {[%clk 0:00:15.3]} 22... Re8 {[%clk 0:01:50.4]} 23. Re2 {[%clk 0:00:13.3]}
23... Qe7 {[%clk 0:01:50]} 24. Rae1 {[%clk 0:00:12.3]} 24... Qf8 {[%clk
0:01:50.4]} 25. h3 {[%clk 0:00:10.9]} 25... Qg7 {[%clk 0:01:50.2]} 26. Bf2
{[%clk 0:00:08.3]} 26... h5 {[%clk 0:01:50.1]} 27. Kf1 {[%clk 0:00:06.4]} 27...
g4 {[%clk 0:01:49.3]} 28. fxg4 {[%clk 0:00:05.8]} 28... fxg4 {[%clk 0:01:49.8]}
29. Kg1 {[%clk 0:00:06]} 29... Ng5 {[%clk 0:01:48.1]} 30. hxg4 {[%clk
0:00:04.3]} 30... hxg4 {[%clk 0:01:32.9]} 31. Bg3 {[%clk 0:00:04.7]} 31... Re7
{[%clk 0:01:18.3]} 32. Be5 {[%clk 0:00:04.3]} 32... Nf7 {[%clk 0:01:13.9]} 33.
Bxf6 {[%clk 0:00:03.1]} 33... Qxf6 {[%clk 0:01:14.2]} 34. Rf1 {[%clk 0:00:03.4]}
34... Qg7 {[%clk 0:01:13.8]} 35. Ref2 {[%clk 0:00:03.2]} 35... Ng5 {[%clk
0:01:13.2]} 36. Re2 {[%clk 0:00:02.5]} 36... e5 {[%clk 0:01:11.3]} 0-1

[Event "Late-Titled-Tuesday-Blitz-January-16-2024"]
[Site "Chess.com"]
[Date "2024.01.16"]
[Round "7"]
[White "Bauman_Guy"]
[Black "Agibileg"]
[Result "1-0"]
[WhiteElo "2901"]
[BlackElo "2682"]
[TimeControl "180+1"]
[EndTime "15:16:54 PST"]
[Termination "Bauman_Guy won by checkmate"]

1. e4 {[%clk 0:03:00.2]} 1... e5 {[%clk 0:02:59.5]} 2. Nf3 {[%clk 0:03:00.3]}
2... Nc6 {[%clk 0:03:00.1]} 3. Bb5 {[%clk 0:03:01]} 3... a6 {[%clk 0:02:58.3]}
4. Ba4 {[%clk 0:03:01.2]} 4... Nf6 {[%clk 0:02:57.9]} 5. O-O {[%clk 0:03:00.2]}
5... d6 {[%clk 0:02:56.9]} 6. c3 {[%clk 0:02:59.9]} 6... Bd7 {[%clk 0:02:55.9]}
7. Re1 {[%clk 0:02:58.2]} 7... g6 {[%clk 0:02:55.1]} 8. d3 {[%clk 0:02:57.7]}
8... Bg7 {[%clk 0:02:55.3]} 9. Nbd2 {[%clk 0:02:58.4]} 9... O-O {[%clk 0:02:55]}
10. Nf1 {[%clk 0:02:58.6]} 10... Nh5 {[%clk 0:02:48.1]} 11. h3 {[%clk
0:02:51.7]} 11... Kh8 {[%clk 0:02:38.2]} 12. d4 {[%clk 0:02:48.4]} 12... f5
{[%clk 0:02:27.9]} 13. exf5 {[%clk 0:02:45.7]} 13... gxf5 {[%clk 0:02:03.8]} 14.
dxe5 {[%clk 0:02:36]} 14... dxe5 {[%clk 0:01:59.2]} 15. Nxe5 {[%clk 0:02:15.4]}
15... Nxe5 {[%clk 0:01:52.6]} 16. Bxd7 {[%clk 0:02:16.3]} 16... Qxd7 {[%clk
0:01:48.8]} 17. Qxh5 {[%clk 0:02:15.3]} 17... Nd3 {[%clk 0:01:48.8]} 18. Rd1
{[%clk 0:02:12.6]} 18... f4 {[%clk 0:01:49.1]} 19. Nh2 {[%clk 0:01:56.5]} 19...
Rad8 {[%clk 0:01:40.6]} 20. Nf3 {[%clk 0:01:55.9]} 20... c5 {[%clk 0:01:13.1]}
21. c4 {[%clk 0:01:17.3]} 21... Qe6 {[%clk 0:00:56.8]} 22. Qxh7+ {[%clk
0:01:09.9]} 22... Kxh7 {[%clk 0:00:56.5]} 23. Ng5+ {[%clk 0:01:10.2]} 23... Kg6
{[%clk 0:00:42.1]} 24. Nxe6 {[%clk 0:01:11.1]} 24... Kf6 {[%clk 0:00:43]} 25.
Nxf8 {[%clk 0:01:09.5]} 25... Bxf8 {[%clk 0:00:39.5]} 26. Bxf4 {[%clk
0:01:09.2]} 26... b5 {[%clk 0:00:38.7]} 27. b3 {[%clk 0:01:08.1]} 27... Be7
{[%clk 0:00:32.9]} 28. Be3 {[%clk 0:01:07]} 28... Kf5 {[%clk 0:00:31.9]} 29. Rd2
{[%clk 0:01:06.6]} 29... Ke4 {[%clk 0:00:32.3]} 30. Rad1 {[%clk 0:01:07]} 30...
Bf6 {[%clk 0:00:31]} 31. Bxc5 {[%clk 0:00:58.1]} 31... bxc4 {[%clk 0:00:26.8]}
32. bxc4 {[%clk 0:00:57.2]} 32... Bc3 {[%clk 0:00:26.1]} 33. Re2+ {[%clk
0:00:56.3]} 33... Kf5 {[%clk 0:00:25]} 34. Re3 {[%clk 0:00:56.5]} 34... Bd2
{[%clk 0:00:20.6]} 35. Rxd2 {[%clk 0:00:55.6]} 35... Rd5 {[%clk 0:00:20.7]} 36.
Rdxd3 {[%clk 0:00:53.7]} 36... a5 {[%clk 0:00:17.8]} 37. Rxd5+ {[%clk
0:00:53.2]} 37... Kf4 {[%clk 0:00:18.7]} 38. g3# {[%clk 0:00:52.7]} 1-0

[Event "Late-Titled-Tuesday-Blitz-January-16-2024"]
[Site "Chess.com"]
[Date "2024.01.16"]
[Round "7"]
[White "vidavi"]
[Black "Grischuk"]
[Result "0-1"]
[WhiteElo "2511"]
[BlackElo "3062"]
[TimeControl "180+1"]
[EndTime "15:16:59 PST"]
[Termination "Grischuk won by resignation"]

1. Nf3 {[%clk 0:03:00.9]} 1... d5 {[%clk 0:02:56.4]} 2. d4 {[%clk 0:03:00]} 2...
Bf5 {[%clk 0:02:55.6]} 3. c4 {[%clk 0:02:59.1]} 3... e6 {[%clk 0:02:56.1]} 4.
Nc3 {[%clk 0:02:57.2]} 4... Nf6 {[%clk 0:02:56.1]} 5. g3 {[%clk 0:02:41.1]} 5...
Be7 {[%clk 0:02:28.5]} 6. Bg2 {[%clk 0:02:41.1]} 6... c6 {[%clk 0:02:27.9]} 7.
O-O {[%clk 0:02:36.9]} 7... Nbd7 {[%clk 0:02:26.1]} 8. Qb3 {[%clk 0:02:22.9]}
8... Qb6 {[%clk 0:02:25.3]} 9. cxd5 {[%clk 0:01:56.2]} 9... exd5 {[%clk
0:02:24.4]} 10. Qxb6 {[%clk 0:01:53]} 10... axb6 {[%clk 0:02:23.7]} 11. Bf4
{[%clk 0:01:52.9]} 11... h6 {[%clk 0:02:21.7]} 12. a3 {[%clk 0:01:52]} 12... b5
{[%clk 0:02:11.1]} 13. Nd2 {[%clk 0:01:23.4]} 13... g5 {[%clk 0:02:04.1]} 14.
Be3 {[%clk 0:01:00]} 14... Nb6 {[%clk 0:01:44.4]} 15. f3 {[%clk 0:00:55.8]}
15... Bg6 {[%clk 0:01:31.2]} 16. Bf2 {[%clk 0:00:52.8]} 16... g4 {[%clk
0:01:21.9]} 17. Be3 {[%clk 0:00:40.1]} 17... h5 {[%clk 0:01:20.2]} 18. Bf4
{[%clk 0:00:35.8]} 18... O-O {[%clk 0:01:18.2]} 19. Bh1 {[%clk 0:00:22.1]} 19...
Rfe8 {[%clk 0:00:55.7]} 20. e4 {[%clk 0:00:21.5]} 20... gxf3 {[%clk 0:00:51.8]}
21. e5 {[%clk 0:00:21.7]} 21... Ne4 {[%clk 0:00:46]} 22. Bxf3 {[%clk 0:00:19.1]}
22... Nxc3 {[%clk 0:00:44.1]} 23. bxc3 {[%clk 0:00:18.7]} 23... Rxa3 {[%clk
0:00:37.7]} 24. Rxa3 {[%clk 0:00:18.3]} 24... Bxa3 {[%clk 0:00:38.6]} 25. Nb3
{[%clk 0:00:17.2]} 25... Na4 {[%clk 0:00:34.5]} 26. Bd2 {[%clk 0:00:12.6]} 26...
Bb2 {[%clk 0:00:34.2]} 27. Na5 {[%clk 0:00:12.7]} 27... Re7 {[%clk 0:00:32.7]}
28. Bd1 {[%clk 0:00:11]} 28... Bxc3 {[%clk 0:00:30]} 0-1